[Event "*** Titled Tuesday Blitz"]
[Site "Chess.com"]
[Date "2019.03.05"]
[Round "2"]
[White "MathiasWomacka"]
[Black "Krupko_Alexey"]
[Result "1-0"]
[WhiteElo "2265"]
[BlackElo "2407"]
[TimeControl "180+2"]
[EndTime "13:25:22 PST"]
[Termination "MathiasWomacka won by resignation"]

1. e4 {[%clk 0:03:01.9]} 1... e6 {[%clk 0:03:00.9]} 2. d4 {[%clk 0:03:02.9]}
2... d5 {[%clk 0:03:00.2]} 3. Nd2 {[%clk 0:03:04.1]} 3... Nf6 {[%clk 0:03:00.7]}
4. e5 {[%clk 0:03:05]} 4... Nfd7 {[%clk 0:03:00.9]} 5. Bd3 {[%clk 0:03:06.5]}
5... c5 {[%clk 0:03:02.2]} 6. c3 {[%clk 0:03:08]} 6... Nc6 {[%clk 0:03:03.4]} 7.
Ne2 {[%clk 0:03:09.3]} 7... cxd4 {[%clk 0:03:04.3]} 8. cxd4 {[%clk 0:03:11.2]}
8... f6 {[%clk 0:03:05.9]} 9. exf6 {[%clk 0:03:11.1]} 9... Qxf6 {[%clk
0:03:07.4]} 10. Nf3 {[%clk 0:03:12.5]} 10... h6 {[%clk 0:03:08.1]} 11. O-O
{[%clk 0:03:13.1]} 11... Bd6 {[%clk 0:03:09.5]} 12. Be3 {[%clk 0:03:13.2]} 12...
O-O {[%clk 0:03:09.5]} 13. Rc1 {[%clk 0:03:14]} 13... a6 {[%clk 0:03:00.8]} 14.
a3 {[%clk 0:03:09]} 14... Rf7 {[%clk 0:02:57.4]} 15. Ng3 {[%clk 0:02:38.9]}
15... Nf8 {[%clk 0:02:56.1]} 16. Qd2 {[%clk 0:02:33.1]} 16... Bd7 {[%clk
0:02:52.9]} 17. Rfe1 {[%clk 0:02:25.7]} 17... Rc8 {[%clk 0:02:50.4]} 18. b4
{[%clk 0:02:11.7]} 18... Be8 {[%clk 0:02:49.4]} 19. Ne5 {[%clk 0:02:07.1]} 19...
Rfc7 {[%clk 0:02:43.8]} 20. f4 {[%clk 0:02:05.2]} 20... Ne7 {[%clk 0:02:43.2]}
21. Rxc7 {[%clk 0:02:02.4]} 21... Rxc7 {[%clk 0:02:43.9]} 22. Rc1 {[%clk
0:01:57.7]} 22... Nc6 {[%clk 0:01:52.8]} 23. Rc2 {[%clk 0:01:34.5]} 23... Qe7
{[%clk 0:01:18.7]} 24. Qc1 {[%clk 0:01:24.4]} 24... Bxe5 {[%clk 0:01:07]} 25.
dxe5 {[%clk 0:01:08.7]} 25... Bg6 {[%clk 0:01:05]} 26. Bxg6 {[%clk 0:00:43]}
26... Nxg6 {[%clk 0:01:05.4]} 27. Ne2 {[%clk 0:00:44.1]} 27... Qd7 {[%clk
0:00:52.5]} 28. Nd4 {[%clk 0:00:43.6]} 28... Nge7 {[%clk 0:00:51.1]} 29. Nb3
{[%clk 0:00:42.7]} 29... Nf5 {[%clk 0:00:43.8]} 30. Bb6 {[%clk 0:00:42.3]} 30...
Rc8 {[%clk 0:00:43.5]} 31. Nc5 {[%clk 0:00:43.3]} 31... Qf7 {[%clk 0:00:41.8]}
32. Nxa6 {[%clk 0:00:42.8]} 32... Ra8 {[%clk 0:00:17.8]} 33. Nc7 {[%clk
0:00:31.9]} 33... Rc8 {[%clk 0:00:18.8]} 34. Nb5 {[%clk 0:00:32.9]} 34... Rf8
{[%clk 0:00:15.7]} 35. Bf2 {[%clk 0:00:29.7]} 35... g5 {[%clk 0:00:14.1]} 36.
fxg5 {[%clk 0:00:27.4]} 36... Qg6 {[%clk 0:00:15.3]} 37. gxh6 {[%clk 0:00:23.5]}
37... Nh4 {[%clk 0:00:15.8]} 38. Bxh4 {[%clk 0:00:22.8]} 38... Nxe5 {[%clk
0:00:16.2]} 39. Bg3 {[%clk 0:00:20.9]} 39... Nd3 {[%clk 0:00:15.6]} 40. Qd1
{[%clk 0:00:20.4]} 40... Qe4 {[%clk 0:00:14.6]} 41. Re2 {[%clk 0:00:20.1]} 41...
Qc4 {[%clk 0:00:14.3]} 42. Rd2 {[%clk 0:00:14.7]} 42... Nf4 {[%clk 0:00:12.5]}
43. Bxf4 {[%clk 0:00:14.9]} 43... Qxf4 {[%clk 0:00:14.4]} 44. Nd4 {[%clk
0:00:13]} 44... Qxh6 {[%clk 0:00:14.7]} 45. Nf3 {[%clk 0:00:13.4]} 45... Qf4
{[%clk 0:00:14.4]} 46. Kh1 {[%clk 0:00:14]} 46... Qf5 {[%clk 0:00:13.1]} 47. Qe2
{[%clk 0:00:14.4]} 47... Rc8 {[%clk 0:00:11.7]} 48. h3 {[%clk 0:00:13.6]} 48...
Rc1+ {[%clk 0:00:11.5]} 49. Rd1 {[%clk 0:00:14.2]} 49... Rc2 {[%clk 0:00:12.9]}
50. Qe5 {[%clk 0:00:14.6]} 50... Qg6 {[%clk 0:00:11.7]} 51. Rd2 {[%clk
0:00:15.1]} 51... Rc1+ {[%clk 0:00:12.5]} 52. Kh2 {[%clk 0:00:16.3]} 52... Rf1
{[%clk 0:00:12.7]} 53. Qg3 {[%clk 0:00:16.9]} 53... Qxg3+ {[%clk 0:00:12.9]} 54.
Kxg3 {[%clk 0:00:18.8]} 54... Ra1 {[%clk 0:00:14.6]} 55. Rd3 {[%clk 0:00:17.9]}
1-0

[Event "*** Titled Tuesday Blitz"]
[Site "Chess.com"]
[Date "2019.03.05"]
[Round "2"]
[White "SF-96"]
[Black "eljanov"]
[Result "0-1"]
[WhiteElo "2569"]
[BlackElo "2759"]
[TimeControl "180+2"]
[EndTime "13:25:35 PST"]
[Termination "eljanov won by resignation"]

1. e4 {[%clk 0:03:00.9]} 1... c6 {[%clk 0:03:00.5]} 2. d4 {[%clk 0:03:01.7]}
2... d5 {[%clk 0:03:01.9]} 3. e5 {[%clk 0:03:03.1]} 3... Bf5 {[%clk 0:03:03.1]}
4. Nd2 {[%clk 0:03:04.5]} 4... e6 {[%clk 0:03:03.9]} 5. Nb3 {[%clk 0:03:05.5]}
5... c5 {[%clk 0:03:04.4]} 6. Nxc5 {[%clk 0:03:06.3]} 6... Bxc5 {[%clk
0:03:04.9]} 7. dxc5 {[%clk 0:03:08.2]} 7... Qa5+ {[%clk 0:03:05.9]} 8. c3 {[%clk
0:03:08.2]} 8... Qxc5 {[%clk 0:03:06.9]} 9. Be3 {[%clk 0:03:08.5]} 9... Qc7
{[%clk 0:03:07.6]} 10. f4 {[%clk 0:03:08.5]} 10... Ne7 {[%clk 0:03:06.5]} 11.
Nf3 {[%clk 0:03:09.1]} 11... O-O {[%clk 0:03:04.9]} 12. Be2 {[%clk 0:03:07.4]}
12... Nbc6 {[%clk 0:03:03.3]} 13. O-O {[%clk 0:03:07.6]} 13... Be4 {[%clk
0:03:02.6]} 14. Nd4 {[%clk 0:03:05.3]} 14... Nf5 {[%clk 0:02:53.6]} 15. Nxf5
{[%clk 0:03:03.5]} 15... Bxf5 {[%clk 0:02:52.8]} 16. Rc1 {[%clk 0:02:51.6]}
16... Rfd8 {[%clk 0:02:47.4]} 17. Bd4 {[%clk 0:02:44.3]} 17... Rac8 {[%clk
0:02:47.8]} 18. Qd2 {[%clk 0:02:35]} 18... Be4 {[%clk 0:02:44]} 19. Qe3 {[%clk
0:01:54.7]} 19... Nxd4 {[%clk 0:02:39.1]} 20. Qxd4 {[%clk 0:01:48.4]} 20... h6
{[%clk 0:02:33]} 21. Rfd1 {[%clk 0:01:42.3]} 21... Qc5 {[%clk 0:02:27.8]} 22.
Qxc5 {[%clk 0:01:35.1]} 22... Rxc5 {[%clk 0:02:28.5]} 23. Rd4 {[%clk 0:01:36.5]}
23... Kf8 {[%clk 0:02:11.4]} 24. b4 {[%clk 0:00:59.2]} 24... Rc7 {[%clk
0:02:05.9]} 25. c4 {[%clk 0:00:59.9]} 25... Ke7 {[%clk 0:02:06.3]} 26. c5 {[%clk
0:00:57.2]} 26... f6 {[%clk 0:01:52.7]} 27. exf6+ {[%clk 0:00:41]} 27... gxf6
{[%clk 0:01:52.9]} 28. Rd2 {[%clk 0:00:27.6]} 28... e5 {[%clk 0:01:47]} 29. fxe5
{[%clk 0:00:28.4]} 29... fxe5 {[%clk 0:01:48.1]} 30. Re1 {[%clk 0:00:25.2]}
30... Kf6 {[%clk 0:01:34.5]} 31. Bg4 {[%clk 0:00:11.2]} 31... Rg8 {[%clk
0:01:29.4]} 32. Bh3 {[%clk 0:00:11.6]} 32... b6 {[%clk 0:01:10.7]} 33. Rf2+
{[%clk 0:00:11.6]} 33... Kg5 {[%clk 0:01:05.1]} 34. cxb6 {[%clk 0:00:09]} 34...
axb6 {[%clk 0:01:06.1]} 35. Ref1 {[%clk 0:00:09.7]} 35... Rgg7 {[%clk
0:00:41.2]} 36. Bf5 {[%clk 0:00:09.9]} 36... Rgf7 {[%clk 0:00:32.5]} 37. Bxe4
{[%clk 0:00:10.4]} 37... Rxf2 {[%clk 0:00:33.2]} 38. Kxf2 {[%clk 0:00:11.8]}
38... dxe4 {[%clk 0:00:31.7]} 39. Ke3 {[%clk 0:00:13.2]} 39... Rc2 {[%clk
0:00:29.7]} 40. Rf2 {[%clk 0:00:11.4]} 40... Rc4 {[%clk 0:00:28.7]} 41. Rb2
{[%clk 0:00:12.5]} 41... Kf5 {[%clk 0:00:28.3]} 42. a4 {[%clk 0:00:11.3]} 42...
Rc3+ {[%clk 0:00:28.2]} 43. Kf2 {[%clk 0:00:12.4]} 43... e3+ {[%clk 0:00:28.8]}
44. Ke2 {[%clk 0:00:12.4]} 44... Ke4 {[%clk 0:00:27.2]} 45. a5 {[%clk
0:00:13.8]} 45... b5 {[%clk 0:00:22.6]} 46. Ra2 {[%clk 0:00:13.3]} 46... Rc7
{[%clk 0:00:22]} 47. a6 {[%clk 0:00:13.6]} 47... Rf7 {[%clk 0:00:23.1]} 48. Ke1
{[%clk 0:00:12.6]} 48... Ra7 {[%clk 0:00:22.3]} 49. Ke2 {[%clk 0:00:10.7]} 49...
Kd4 {[%clk 0:00:23.4]} 50. Ra3 {[%clk 0:00:10.4]} 50... Kc4 {[%clk 0:00:24.5]}
51. Rxe3 {[%clk 0:00:04.4]} 51... Kxb4 {[%clk 0:00:25.3]} 52. Rxe5 {[%clk
0:00:05.7]} 52... Rxa6 {[%clk 0:00:26.5]} 53. Kf3 {[%clk 0:00:06.6]} 53... Kc4
{[%clk 0:00:27.2]} 54. g4 {[%clk 0:00:07.2]} 54... b4 {[%clk 0:00:28.3]} 55. h4
{[%clk 0:00:08]} 55... b3 {[%clk 0:00:29.5]} 56. Re1 {[%clk 0:00:06.4]} 56... b2
{[%clk 0:00:29.1]} 57. Kf4 {[%clk 0:00:07.7]} 57... Ra1 {[%clk 0:00:29.6]} 58.
Re4+ {[%clk 0:00:07]} 58... Kd5 {[%clk 0:00:30.6]} 59. Re5+ {[%clk 0:00:07.7]}
59... Kd6 {[%clk 0:00:31.8]} 60. Rb5 {[%clk 0:00:08.7]} 60... b1=Q {[%clk
0:00:33.1]} 61. Rxb1 {[%clk 0:00:10.2]} 61... Rxb1 {[%clk 0:00:34.4]} 62. Kf5
{[%clk 0:00:11.8]} 62... Rg1 {[%clk 0:00:35.2]} 63. g5 {[%clk 0:00:03.9]} 63...
hxg5 {[%clk 0:00:35.9]} 64. hxg5 {[%clk 0:00:05.5]} 64... Ke7 {[%clk 0:00:37.1]}
65. Kg6 {[%clk 0:00:07.4]} 0-1

[Event "*** Titled Tuesday Blitz"]
[Site "Chess.com"]
[Date "2019.03.05"]
[Round "2"]
[White "Bryakin_Mikhail"]
[Black "champ2005"]
[Result "1-0"]
[WhiteElo "2653"]
[BlackElo "2790"]
[TimeControl "180+2"]
[EndTime "13:25:39 PST"]
[Termination "Bryakin_Mikhail won by resignation"]

1. d4 {[%clk 0:03:01.9]} 1... b6 {[%clk 0:03:01.2]} 2. c4 {[%clk 0:02:58.6]}
2... e6 {[%clk 0:03:00.9]} 3. e4 {[%clk 0:02:56.5]} 3... Bb7 {[%clk 0:02:58.2]}
4. Bd3 {[%clk 0:02:57.7]} 4... f5 {[%clk 0:02:58.3]} 5. exf5 {[%clk 0:02:29]}
5... Bb4+ {[%clk 0:02:59.2]} 6. Kf1 {[%clk 0:02:28]} 6... Nf6 {[%clk 0:03:00.3]}
7. c5 {[%clk 0:02:14]} 7... bxc5 {[%clk 0:02:59]} 8. a3 {[%clk 0:02:12]} 8... c4
{[%clk 0:03:00.2]} 9. Bxc4 {[%clk 0:02:06.6]} 9... Ba5 {[%clk 0:03:00.7]} 10.
Nf3 {[%clk 0:01:47.6]} 10... O-O {[%clk 0:02:45.1]} 11. Bg5 {[%clk 0:01:42.2]}
11... Kh8 {[%clk 0:02:34]} 12. fxe6 {[%clk 0:01:36.1]} 12... dxe6 {[%clk
0:02:34.6]} 13. Nc3 {[%clk 0:01:21.3]} 13... Nc6 {[%clk 0:02:19.3]} 14. Qd3
{[%clk 0:01:12.7]} 14... Bb6 {[%clk 0:02:02.5]} 15. Rd1 {[%clk 0:01:10.1]} 15...
Qd6 {[%clk 0:01:47.2]} 16. Bxf6 {[%clk 0:00:48.3]} 16... gxf6 {[%clk 0:01:48]}
17. Ba6 {[%clk 0:00:42.5]} 17... Bxa6 {[%clk 0:01:29]} 18. Qxa6 {[%clk
0:00:44.4]} 18... Rad8 {[%clk 0:01:20.6]} 19. h4 {[%clk 0:00:44.2]} 19... Rg8
{[%clk 0:00:49.5]} 20. Rh3 {[%clk 0:00:37.7]} 20... Rg4 {[%clk 0:00:44]} 21. d5
{[%clk 0:00:35.6]} 21... Qc5 {[%clk 0:00:31]} 22. Qe2 {[%clk 0:00:35.6]} 22...
exd5 {[%clk 0:00:31.8]} 23. Ne1 {[%clk 0:00:26]} 23... Rg7 {[%clk 0:00:26.3]}
24. Nd3 {[%clk 0:00:26.8]} 24... Qd6 {[%clk 0:00:23]} 25. Nb5 {[%clk 0:00:22.1]}
25... Qd7 {[%clk 0:00:21.6]} 26. Rf3 {[%clk 0:00:20.7]} 26... Rdg8 {[%clk
0:00:22.2]} 27. Ne1 {[%clk 0:00:18.5]} 27... Ne5 {[%clk 0:00:18.5]} 28. Rxf6
{[%clk 0:00:16.3]} 28... Ng4 {[%clk 0:00:19.5]} 29. Rf4 {[%clk 0:00:12.3]} 29...
Nxf2 {[%clk 0:00:14.4]} 30. Rxf2 {[%clk 0:00:12.9]} 30... Bxf2 {[%clk
0:00:15.5]} 31. Kxf2 {[%clk 0:00:14.5]} 31... Qd8 {[%clk 0:00:15.7]} 32. Nd4
{[%clk 0:00:13.8]} 32... Qxh4+ {[%clk 0:00:15.9]} 33. Kg1 {[%clk 0:00:15.2]}
33... Re7 {[%clk 0:00:16.3]} 34. Qd2 {[%clk 0:00:15.1]} 34... Qf6 {[%clk
0:00:13.2]} 35. Ndf3 {[%clk 0:00:16.2]} 35... c6 {[%clk 0:00:14.1]} 36. Qd4
{[%clk 0:00:16.1]} 36... Qxd4+ {[%clk 0:00:15.2]} 37. Nxd4 {[%clk 0:00:17.2]}
37... Rg6 {[%clk 0:00:16.5]} 38. Nef3 {[%clk 0:00:18.3]} 38... Reg7 {[%clk
0:00:16.4]} 39. Rd2 {[%clk 0:00:18.7]} 39... Re7 {[%clk 0:00:13]} 40. Kf2 {[%clk
0:00:19.7]} 40... c5 {[%clk 0:00:13.1]} 41. Nf5 {[%clk 0:00:20.3]} 41... Rd7
{[%clk 0:00:13.6]} 42. Ne5 {[%clk 0:00:20.5]} 42... Rf6 {[%clk 0:00:12.9]} 43.
Nxd7 {[%clk 0:00:22]} 43... Rxf5+ {[%clk 0:00:14.2]} 44. Ke3 {[%clk 0:00:23.3]}
44... d4+ {[%clk 0:00:15.6]} 45. Ke4 {[%clk 0:00:24.7]} 45... Rg5 {[%clk
0:00:17]} 46. Ne5 {[%clk 0:00:25.2]} 46... Kg7 {[%clk 0:00:18.3]} 47. Nc4 {[%clk
0:00:24.5]} 47... Kf6 {[%clk 0:00:19.3]} 48. Rf2+ {[%clk 0:00:26]} 48... Ke6
{[%clk 0:00:20.5]} 49. a4 {[%clk 0:00:21.6]} 49... Rg4+ {[%clk 0:00:21.4]} 50.
Kf3 {[%clk 0:00:22.4]} 50... h5 {[%clk 0:00:20.4]} 51. b3 {[%clk 0:00:23.5]}
51... Kd5 {[%clk 0:00:21.3]} 52. Ke2 {[%clk 0:00:22.8]} 52... Rg3 {[%clk
0:00:21.7]} 53. Rf5+ {[%clk 0:00:22.3]} 53... Ke4 {[%clk 0:00:19.4]} 54. Re5+
{[%clk 0:00:23.4]} 54... Kf4 {[%clk 0:00:20.4]} 55. Rxh5 {[%clk 0:00:24.8]}
55... Rxg2+ {[%clk 0:00:19.8]} 56. Kd3 {[%clk 0:00:25.3]} 56... Rg3+ {[%clk
0:00:21]} 57. Kc2 {[%clk 0:00:26.7]} 57... Rg2+ {[%clk 0:00:22.3]} 58. Nd2
{[%clk 0:00:27.7]} 58... Ke3 {[%clk 0:00:16.6]} 59. Re5+ {[%clk 0:00:28.8]}
59... Kf2 {[%clk 0:00:18]} 60. Rxc5 {[%clk 0:00:28.8]} 60... Rg3 {[%clk
0:00:16.8]} 61. Ne4+ {[%clk 0:00:28.9]} 1-0

[Event "*** Titled Tuesday Blitz"]
[Site "Chess.com"]
[Date "2019.03.05"]
[Round "2"]
[White "xLuring1"]
[Black "toog"]
[Result "1/2-1/2"]
[WhiteElo "2411"]
[BlackElo "2254"]
[TimeControl "180+2"]
[EndTime "13:25:44 PST"]
[Termination "Game drawn by repetition"]

1. e4 {[%clk 0:03:01.9]} 1... c5 {[%clk 0:02:59.8]} 2. Nf3 {[%clk 0:03:02.6]}
2... d6 {[%clk 0:02:59.6]} 3. d4 {[%clk 0:03:03]} 3... cxd4 {[%clk 0:03:01.5]}
4. Nxd4 {[%clk 0:03:03.9]} 4... Nf6 {[%clk 0:03:03.2]} 5. f3 {[%clk 0:03:05]}
5... Nc6 {[%clk 0:02:58.8]} 6. c4 {[%clk 0:03:04.8]} 6... e5 {[%clk 0:02:58.9]}
7. Nc2 {[%clk 0:03:04.6]} 7... Be7 {[%clk 0:02:49.1]} 8. Nc3 {[%clk 0:03:01]}
8... O-O {[%clk 0:02:44.9]} 9. Be2 {[%clk 0:02:58.7]} 9... h6 {[%clk 0:02:44.7]}
10. O-O {[%clk 0:02:59.6]} 10... a6 {[%clk 0:02:43.4]} 11. Be3 {[%clk
0:02:59.3]} 11... Rb8 {[%clk 0:02:36.9]} 12. Bf2 {[%clk 0:02:58.3]} 12... Re8
{[%clk 0:02:27.1]} 13. Ne3 {[%clk 0:02:58.2]} 13... Nd4 {[%clk 0:02:25.3]} 14.
Bd3 {[%clk 0:02:56.3]} 14... b5 {[%clk 0:02:21.7]} 15. cxb5 {[%clk 0:02:55.2]}
15... axb5 {[%clk 0:02:23.6]} 16. Re1 {[%clk 0:02:55.4]} 16... Be6 {[%clk
0:01:49.6]} 17. Ncd5 {[%clk 0:02:55.5]} 17... Nxd5 {[%clk 0:01:44]} 18. Nxd5
{[%clk 0:02:56.6]} 18... Bxd5 {[%clk 0:01:35.9]} 19. exd5 {[%clk 0:02:57]} 19...
Bf6 {[%clk 0:01:37.3]} 20. Qd2 {[%clk 0:02:48.5]} 20... b4 {[%clk 0:01:30.4]}
21. Rac1 {[%clk 0:02:32.9]} 21... Qa5 {[%clk 0:01:06]} 22. b3 {[%clk 0:02:16.6]}
22... Rec8 {[%clk 0:00:54.1]} 23. Bc4 {[%clk 0:02:04.9]} 23... Ra8 {[%clk
0:00:44.5]} 24. Bxd4 {[%clk 0:01:57.3]} 24... exd4 {[%clk 0:00:42.9]} 25. Re2
{[%clk 0:01:56.6]} 25... Qb6 {[%clk 0:00:29.8]} 26. Qd3 {[%clk 0:01:55.3]} 26...
Bg5 {[%clk 0:00:27]} 27. Rcc2 {[%clk 0:01:46.8]} 27... Be3+ {[%clk 0:00:26.4]}
28. Kh1 {[%clk 0:01:47.7]} 28... Re8 {[%clk 0:00:21.3]} 29. g3 {[%clk
0:01:44.6]} 29... Qd8 {[%clk 0:00:21]} 30. Kg2 {[%clk 0:01:43.1]} 30... Qf6
{[%clk 0:00:21.9]} 31. Bb5 {[%clk 0:01:35.9]} 31... Re5 {[%clk 0:00:22]} 32. Bd7
{[%clk 0:01:33.4]} 32... Rd8 {[%clk 0:00:20.8]} 33. Rc8 {[%clk 0:01:28.8]} 33...
Rxc8 {[%clk 0:00:21.7]} 34. Bxc8 {[%clk 0:01:30]} 34... Qd8 {[%clk 0:00:23]} 35.
Rc2 {[%clk 0:01:30.4]} 35... Rxd5 {[%clk 0:00:22.8]} 36. Bf5 {[%clk 0:01:11.2]}
36... Rc5 {[%clk 0:00:22.9]} 37. Rxc5 {[%clk 0:01:11]} 37... dxc5 {[%clk
0:00:24.8]} 38. Qc4 {[%clk 0:01:11.6]} 38... Qd6 {[%clk 0:00:24.7]} 39. Bd3
{[%clk 0:01:07.7]} 39... g6 {[%clk 0:00:25.7]} 40. Qb5 {[%clk 0:01:03]} 40... h5
{[%clk 0:00:18.9]} 41. Qe8+ {[%clk 0:01:02.1]} 41... Kg7 {[%clk 0:00:19.6]} 42.
Qe4 {[%clk 0:01:02.6]} 42... Qf6 {[%clk 0:00:19.5]} 43. Bc4 {[%clk 0:00:57.1]}
43... h4 {[%clk 0:00:18.4]} 44. g4 {[%clk 0:00:56.2]} 44... g5 {[%clk
0:00:18.3]} 45. h3 {[%clk 0:00:54.7]} 45... Qd6 {[%clk 0:00:18.7]} 46. f4 {[%clk
0:00:51.8]} 46... Qxf4 {[%clk 0:00:19.7]} 47. Qxf4 {[%clk 0:00:52.9]} 47... Bxf4
{[%clk 0:00:21.6]} 48. Kf3 {[%clk 0:00:54.2]} 48... Kf6 {[%clk 0:00:22.9]} 49.
Bd3 {[%clk 0:00:55.8]} 49... Ke5 {[%clk 0:00:24.1]} 50. Be4 {[%clk 0:00:57.2]}
50... f6 {[%clk 0:00:25.6]} 51. Bf5 {[%clk 0:00:57.7]} 51... Bd2 {[%clk
0:00:26.7]} 52. Bd3 {[%clk 0:00:58.1]} 52... Bc3 {[%clk 0:00:28.2]} 53. Bc4
{[%clk 0:00:57.3]} 53... f5 {[%clk 0:00:28.6]} 54. gxf5 {[%clk 0:00:57.7]} 54...
Kxf5 {[%clk 0:00:30.5]} 55. Bd3+ {[%clk 0:00:59.2]} 55... Ke5 {[%clk 0:00:31.8]}
56. Kg4 {[%clk 0:01:00.4]} 56... Bd2 {[%clk 0:00:32.6]} 57. Bc2 {[%clk
0:00:59.3]} 57... Bf4 {[%clk 0:00:33.4]} 58. Bd3 {[%clk 0:01:00.5]} 58... Kd5
{[%clk 0:00:34.8]} 59. Kf5 {[%clk 0:01:00.5]} 59... Kd6 {[%clk 0:00:34.9]} 60.
Bc4 {[%clk 0:01:01.7]} 60... Kc6 {[%clk 0:00:35.9]} 61. Bd3 {[%clk 0:01:02.8]}
61... Kd5 {[%clk 0:00:37.1]} 62. Bc4+ {[%clk 0:01:04.1]} 62... Kd6 {[%clk
0:00:38.4]} 63. Bd3 {[%clk 0:01:05.2]} 63... Be3 {[%clk 0:00:38.1]} 64. Bc4
{[%clk 0:01:04.6]} 64... Ke7 {[%clk 0:00:39.1]} 65. Bd3 {[%clk 0:01:05.3]} 65...
Kf7 {[%clk 0:00:40.1]} 66. Bc4+ {[%clk 0:01:06.4]} 66... Kg7 {[%clk 0:00:42]}
67. Bd3 {[%clk 0:01:07.6]} 67... Kh6 {[%clk 0:00:42.7]} 68. Kg4 {[%clk
0:01:08.2]} 68... Kg7 {[%clk 0:00:43.5]} 69. Kf5 {[%clk 0:01:08.9]} 69... Kf7
{[%clk 0:00:30.9]} 70. Bc4+ {[%clk 0:01:09.6]} 70... Ke7 {[%clk 0:00:32.3]} 71.
Bd3 {[%clk 0:01:10.5]} 71... Kd6 {[%clk 0:00:34.2]} 72. Bc4 {[%clk 0:01:10.4]}
72... Kc6 {[%clk 0:00:35.2]} 73. Bd3 {[%clk 0:01:11.5]} 73... Bf4 {[%clk
0:00:34.9]} 74. Be4+ {[%clk 0:01:10.7]} 74... Kb5 {[%clk 0:00:35.7]} 75. Bd3+
{[%clk 0:01:12.3]} 75... Kc6 {[%clk 0:00:36.1]} 76. Bc4 {[%clk 0:01:13.6]} 76...
Kd6 {[%clk 0:00:36.5]} 77. Bd3 {[%clk 0:01:13.6]} 77... Kd5 {[%clk 0:00:37.4]}
78. Bc4+ {[%clk 0:01:14.8]} 78... Kd6 {[%clk 0:00:38.7]} 79. Bd3 {[%clk
0:01:14.6]} 79... Kd5 {[%clk 0:00:40.6]} 80. Bc4+ {[%clk 0:01:15.7]} 80... Kd6
{[%clk 0:00:42]} 81. Bd3 {[%clk 0:01:16.7]} 81... Kd5 {[%clk 0:00:42.4]} 1/2-1/2

[Event "*** Titled Tuesday Blitz"]
[Site "Chess.com"]
[Date "2019.03.05"]
[Round "2"]
[White "Lennis93"]
[Black "KRASAVCHIK2002"]
[Result "1-0"]
[WhiteElo "2230"]
[BlackElo "2311"]
[TimeControl "180+2"]
[EndTime "13:25:56 PST"]
[Termination "Lennis93 won on time"]

1. e4 {[%clk 0:03:01.9]} 1... c5 {[%clk 0:03:00.3]} 2. Nf3 {[%clk 0:03:02.5]}
2... d6 {[%clk 0:03:01.4]} 3. d4 {[%clk 0:03:02.7]} 3... cxd4 {[%clk 0:03:02.6]}
4. Nxd4 {[%clk 0:03:04.2]} 4... Nf6 {[%clk 0:03:03.9]} 5. Nc3 {[%clk 0:03:05.6]}
5... a6 {[%clk 0:03:04.8]} 6. Bg5 {[%clk 0:03:05.7]} 6... e6 {[%clk 0:03:05.9]}
7. f4 {[%clk 0:03:06.4]} 7... Qb6 {[%clk 0:03:06.6]} 8. Bxf6 {[%clk 0:02:58.6]}
8... gxf6 {[%clk 0:03:07.2]} 9. Qd2 {[%clk 0:02:52.8]} 9... Qxb2 {[%clk
0:02:57.3]} 10. Nb3 {[%clk 0:02:53.3]} 10... Qa3 {[%clk 0:02:54]} 11. Be2 {[%clk
0:02:53.8]} 11... Qb4 {[%clk 0:02:51.4]} 12. O-O {[%clk 0:02:51.7]} 12... Qb6+
{[%clk 0:02:51.5]} 13. Kh1 {[%clk 0:02:51.8]} 13... Nc6 {[%clk 0:02:51.5]} 14.
Bh5 {[%clk 0:02:51.4]} 14... Bd7 {[%clk 0:02:09.4]} 15. f5 {[%clk 0:02:50.8]}
15... Ne5 {[%clk 0:02:10.4]} 16. Rab1 {[%clk 0:02:49.1]} 16... Qc7 {[%clk
0:02:05.9]} 17. fxe6 {[%clk 0:02:48.7]} 17... Bxe6 {[%clk 0:02:06.3]} 18. Rxf6
{[%clk 0:02:45.3]} 18... O-O-O {[%clk 0:02:06.7]} 19. Nd5 {[%clk 0:02:42.3]}
19... Bxd5 {[%clk 0:02:06.7]} 20. exd5 {[%clk 0:02:38.1]} 20... Bg7 {[%clk
0:01:35.9]} 21. Rff1 {[%clk 0:02:34]} 21... Rhe8 {[%clk 0:01:23]} 22. Na5 {[%clk
0:02:29.7]} 22... b6 {[%clk 0:01:23]} 23. Nc6 {[%clk 0:02:27.8]} 23... Nxc6
{[%clk 0:01:22.8]} 24. dxc6 {[%clk 0:02:28.4]} 24... Re7 {[%clk 0:00:27.2]} 25.
Qd3 {[%clk 0:02:26.7]} 25... b5 {[%clk 0:00:26.5]} 26. Bf3 {[%clk 0:02:26.2]}
26... d5 {[%clk 0:00:24.4]} 27. a4 {[%clk 0:02:26.1]} 27... Rd6 {[%clk
0:00:08.8]} 28. axb5 {[%clk 0:02:26.6]} 28... Rh6 {[%clk 0:00:09.9]} 29. Bg4+
{[%clk 0:02:23.7]} 29... Kd8 {[%clk 0:00:11.1]} 30. g3 {[%clk 0:02:13.5]} 30...
axb5 {[%clk 0:00:09]} 31. Qxd5+ {[%clk 0:02:11.5]} 31... Ke8 {[%clk 0:00:10.4]}
32. Bd7+ {[%clk 0:02:05.7]} 32... Kf8 {[%clk 0:00:10.9]} 33. Qxb5 {[%clk
0:01:55]} 33... Be5 {[%clk 0:00:09.5]} 34. Rf3 {[%clk 0:01:40.4]} 34... Bxg3
{[%clk 0:00:07.5]} 35. Rxg3 {[%clk 0:01:39.7]} 35... Qxg3 {[%clk 0:00:08.5]} 36.
Qb8+ {[%clk 0:01:39.4]} 36... Qxb8 {[%clk 0:00:09.9]} 37. Rxb8+ {[%clk 0:01:40]}
37... Kg7 {[%clk 0:00:10.8]} 38. c7 {[%clk 0:01:41.1]} 38... Re2 {[%clk
0:00:12]} 39. Rg8+ {[%clk 0:01:23.8]} 39... Kf6 {[%clk 0:00:04.4]} 40. h3 {[%clk
0:01:21.6]} 40... Rxc2 {[%clk 0:00:02.7]} 41. c8=Q {[%clk 0:01:21.6]} 41... Rxc8
{[%clk 0:00:04.3]} 42. Bxc8 {[%clk 0:01:22.3]} 42... Ke7 {[%clk 0:00:05.4]} 43.
Kg2 {[%clk 0:01:22.8]} 43... Rc6 {[%clk 0:00:06.2]} 44. Bg4 {[%clk 0:01:21.8]}
44... Rc5 {[%clk 0:00:03.7]} 45. Kg3 {[%clk 0:01:21]} 45... Kf6 {[%clk
0:00:03.9]} 46. Kh4 {[%clk 0:01:20.4]} 46... Rc4 {[%clk 0:00:02.5]} 47. Kh5
{[%clk 0:01:19.4]} 47... Rc5+ {[%clk 0:00:03.8]} 48. Kh6 {[%clk 0:01:19.4]}
48... Rc4 {[%clk 0:00:05.1]} 49. Kxh7 {[%clk 0:01:19.4]} 49... Rc3 {[%clk
0:00:06.6]} 50. Ra8 {[%clk 0:01:16.2]} 50... Ke5 {[%clk 0:00:07.2]} 51. Kg7
{[%clk 0:01:16.1]} 51... Rc7 {[%clk 0:00:06]} 52. Ra5+ {[%clk 0:01:15.3]} 52...
Kf4 {[%clk 0:00:06]} 53. Kf6 {[%clk 0:01:07.6]} 53... Kg3 {[%clk 0:00:04.5]} 54.
Bf5 {[%clk 0:01:02.7]} 54... Kh4 {[%clk 0:00:04.4]} 55. Ra4+ {[%clk 0:01:03]}
55... Kg3 {[%clk 0:00:05.4]} 56. Rg4+ {[%clk 0:01:02.4]} 56... Kf3 {[%clk
0:00:06.5]} 57. Rg1 {[%clk 0:01:01.7]} 57... Kf4 {[%clk 0:00:07.1]} 58. Rg4+
{[%clk 0:01:00.2]} 58... Kf3 {[%clk 0:00:08]} 59. Rg7 {[%clk 0:00:59.5]} 59...
Kf4 {[%clk 0:00:06.4]} 60. Bg4 {[%clk 0:00:58.2]} 60... Rc6+ {[%clk 0:00:02.8]}
61. Kxf7 {[%clk 0:00:54.5]} 61... Rc7+ {[%clk 0:00:04]} 62. Kg6 {[%clk
0:00:55.5]} 62... Rxg7+ {[%clk 0:00:05.9]} 63. Kxg7 {[%clk 0:00:56.4]} 63... Kg5
{[%clk 0:00:07.8]} 64. Be6 {[%clk 0:00:55.1]} 64... Kh5 {[%clk 0:00:06.5]} 65.
Bf5 {[%clk 0:00:49.4]} 65... Kg5 {[%clk 0:00:06.6]} 66. Bd7 {[%clk 0:00:49.8]}
66... Kh5 {[%clk 0:00:06.3]} 67. Be6 {[%clk 0:00:49.4]} 67... Kg5 {[%clk
0:00:07.3]} 68. Bg4 {[%clk 0:00:49.9]} 68... Kf4 {[%clk 0:00:02.2]} 69. Kg6
{[%clk 0:00:50.3]} 1-0